[Event "Titled Tuesday Blitz July 18 Early 2023"]
[White "Schut, Han"]
[Black "Gyulamiryan-koryun"]
[WhiteFideId "1005561"]
[WhiteElo "2283"]
[BlackElo "1891"]
[Result "0-1"]
[Round "11"]
[TimeControl "180+2"]
[Date "2023.07.18"]
[WhiteClock "0:00:00"]
[BlackClock "0:01:45"]
[Board "134"]

1. e4 {[%clk 0:03:00]}  c6 {[%clk 0:03:00]} 2. d4 {[%clk 0:02:57]}  d5 {[%clk 0:03:00]} 3. exd5 {[%clk 0:02:58]}  cxd5 {[%clk 0:03:00]} 4. c4 {[%clk 0:02:59]}  Nf6 {[%clk 0:02:59]} 5. Nc3 {[%clk 0:02:59]}  dxc4 {[%clk 0:02:58]} 6. Bxc4 {[%clk 0:02:59]}  e6 {[%clk 0:02:57]} 7. Nf3 {[%clk 0:02:58]}  Nc6 {[%clk 0:02:57]} 8. O-O {[%clk 0:02:58]}  Bd6 {[%clk 0:02:57]} 9. h3 {[%clk 0:02:58]}  a6 {[%clk 0:02:57]} 10. Re1 {[%clk 0:02:54]}  O-O {[%clk 0:02:57]} 11. Bg5 {[%clk 0:02:47]}  h6 {[%clk 0:02:56]} 12. Be3 {[%clk 0:02:47]}  b5 {[%clk 0:02:56]} 13. Bb3 {[%clk 0:02:45]}  Bb7 {[%clk 0:02:55]} 14. Rc1 {[%clk 0:02:41]}  Rc8 {[%clk 0:02:54]} 15. Bc2 {[%clk 0:02:41]}  Na5 {[%clk 0:02:43]} 16. d5 {[%clk 0:02:05]}  exd5 {[%clk 0:02:24]} 17. Bd4 {[%clk 0:01:58]}  Nc4 {[%clk 0:02:18]} 18. Bxf6 {[%clk 0:01:39]}  Qxf6 {[%clk 0:02:18]} 19. Qd3 {[%clk 0:01:30]}  g6 {[%clk 0:02:15]} 20. Nxd5 {[%clk 0:01:14]}  Bxd5 {[%clk 0:02:10]} 21. Qxd5 {[%clk 0:01:15]}  Rfd8 {[%clk 0:02:04]} 22. Qe4 {[%clk 0:00:46]}  Nxb2 {[%clk 0:01:56]} 23. Qe3 {[%clk 0:00:27]}  Kg7 {[%clk 0:01:51]} 24. Bb3 {[%clk 0:00:00]}  Bf4 {[%clk 0:01:45]} 0-1


[Site "https://www.chess.com"]

[Event "Titled Tuesday Blitz July 18 Early 2023"]
[White "ArchibaldCerveza29"]
[Black "Tqebuchava, Zurab"]
[BlackFideId "13601113"]
[WhiteElo "2426"]
[BlackElo "2112"]
[Result "1-0"]
[Round "11"]
[TimeControl "180+2"]
[Date "2023.07.18"]
[WhiteClock "0:00:04"]
[BlackClock "0:00:00"]
[Board "135"]

1. d4 {[%clk 0:02:54]}  d6 {[%clk 0:03:00]} 2. c4 {[%clk 0:02:54]}  Nf6 {[%clk 0:02:59]} 3. Nc3 {[%clk 0:02:54]}  Nbd7 {[%clk 0:02:58]} 4. e4 {[%clk 0:02:53]}  e5 {[%clk 0:02:58]} 5. Nf3 {[%clk 0:02:52]}  exd4 {[%clk 0:02:54]} 6. Nxd4 {[%clk 0:02:51]}  Be7 {[%clk 0:02:53]} 7. Be3 {[%clk 0:02:48]}  O-O {[%clk 0:02:52]} 8. Be2 {[%clk 0:02:48]}  Nc5 {[%clk 0:02:49]} 9. f3 {[%clk 0:02:45]}  a5 {[%clk 0:02:35]} 10. O-O {[%clk 0:02:43]}  c6 {[%clk 0:02:34]} 11. Rb1 {[%clk 0:02:37]}  Re8 {[%clk 0:02:32]} 12. a3 {[%clk 0:02:38]}  a4 {[%clk 0:02:29]} 13. Qc2 {[%clk 0:02:25]}  h6 {[%clk 0:02:24]} 14. f4 {[%clk 0:02:07]}  Bg4 {[%clk 0:02:10]} 15. Rbd1 {[%clk 0:02:02]}  Bxe2 {[%clk 0:02:08]} 16. Ndxe2 {[%clk 0:02:03]}  Qc7 {[%clk 0:01:58]} 17. Bxc5 {[%clk 0:01:53]}  dxc5 {[%clk 0:01:57]} 18. e5 {[%clk 0:01:48]}  Nh7 {[%clk 0:01:36]} 19. Nxa4 {[%clk 0:01:40]}  Nf8 {[%clk 0:01:27]} 20. Nac3 {[%clk 0:01:28]}  Ne6 {[%clk 0:01:25]} 21. Ne4 {[%clk 0:01:11]}  Red8 {[%clk 0:01:10]} 22. f5 {[%clk 0:00:58]}  Nd4 {[%clk 0:01:07]} 23. Nxd4 {[%clk 0:00:57]}  cxd4 {[%clk 0:01:07]} 24. f6 {[%clk 0:00:55]}  Bf8 {[%clk 0:00:58]} 25. fxg7 {[%clk 0:00:50]}  Bxg7 {[%clk 0:00:57]} 26. Nf6+ {[%clk 0:00:49]}  Bxf6 {[%clk 0:00:51]} 27. exf6 {[%clk 0:00:50]}  Ra5 {[%clk 0:00:37]} 28. Qe4 {[%clk 0:00:37]}  Qe5 {[%clk 0:00:23]} 29. Qf3 {[%clk 0:00:23]}  Qg5 {[%clk 0:00:17]} 30. Rd3 {[%clk 0:00:22]}  Kh7 {[%clk 0:00:13]} 31. Qe4+ {[%clk 0:00:21]}  Qg6 {[%clk 0:00:09]} 32. Qe7 {[%clk 0:00:20]}  Rg8 {[%clk 0:00:06]} 33. Rg3 {[%clk 0:00:19]}  Rg5 {[%clk 0:00:05]} 34. Rxg5 {[%clk 0:00:16]}  hxg5 {[%clk 0:00:05]} 35. Rf3 {[%clk 0:00:12]}  g4 {[%clk 0:00:04]} 36. Rg3 {[%clk 0:00:10]}  d3 {[%clk 0:00:03]} 37. Qd7 {[%clk 0:00:09]}  Qxf6 {[%clk 0:00:01]} 38. Qxd3+ {[%clk 0:00:07]}  Qg6 {[%clk 0:00:01]} 39. Qe2 {[%clk 0:00:05]}  Qg5 {[%clk 0:00:01]} 40. Qe4+ {[%clk 0:00:05]}  Qg6 {[%clk 0:00:01]} 41. Qe3 {[%clk 0:00:05]}  Qg5 {[%clk 0:00:00]} 42. Qxg5 {[%clk 0:00:04]} 1-0


[Site "https://www.chess.com"]

[Event "Titled Tuesday Blitz July 18 Early 2023"]
[White "Quirke, Jeffrey"]
[Black "Floresvillar Gonzalez, Luis Migu"]
[WhiteFideId "2013029"]
[BlackFideId "5100542"]
[WhiteElo "2211"]
[BlackElo "2069"]
[Result "1-0"]
[Round "11"]
[TimeControl "180+2"]
[Date "2023.07.18"]
[WhiteClock "0:00:03"]
[BlackClock "0:00:00"]
[Board "136"]

1. c4 {[%clk 0:03:00]}  c6 {[%clk 0:02:58]} 2. g3 {[%clk 0:02:55]}  d5 {[%clk 0:02:58]} 3. Bg2 {[%clk 0:02:55]}  Nf6 {[%clk 0:02:58]} 4. Nf3 {[%clk 0:02:56]}  Bg4 {[%clk 0:02:57]} 5. O-O {[%clk 0:02:55]}  e6 {[%clk 0:02:58]} 6. b3 {[%clk 0:02:52]}  Nbd7 {[%clk 0:02:53]} 7. Bb2 {[%clk 0:02:53]}  Be7 {[%clk 0:02:51]} 8. d3 {[%clk 0:02:51]}  O-O {[%clk 0:02:50]} 9. Nbd2 {[%clk 0:02:48]}  h5 {[%clk 0:02:49]} 10. Rc1 {[%clk 0:02:42]}  Rc8 {[%clk 0:02:47]} 11. Rc2 {[%clk 0:02:41]}  a5 {[%clk 0:02:46]} 12. Qa1 {[%clk 0:02:41]}  Ne8 {[%clk 0:02:33]} 13. h3 {[%clk 0:02:36]}  Bxf3 {[%clk 0:02:32]} 14. Nxf3 {[%clk 0:02:35]}  Bf6 {[%clk 0:02:32]} 15. Rfc1 {[%clk 0:02:31]}  Bxb2 {[%clk 0:02:31]} 16. Qxb2 {[%clk 0:02:30]}  Nef6 {[%clk 0:02:30]} 17. cxd5 {[%clk 0:02:21]}  exd5 {[%clk 0:02:28]} 18. a3 {[%clk 0:02:21]}  Qb6 {[%clk 0:02:27]} 19. b4 {[%clk 0:02:14]}  axb4 {[%clk 0:02:26]} 20. axb4 {[%clk 0:02:14]}  Rfe8 {[%clk 0:02:23]} 21. Qd4 {[%clk 0:02:09]}  Ra8 {[%clk 0:02:04]} 22. Qxb6 {[%clk 0:02:02]}  Nxb6 {[%clk 0:02:04]} 23. Nd4 {[%clk 0:02:02]}  Nfd7 {[%clk 0:01:49]} 24. Nf5 {[%clk 0:01:50]}  Re6 {[%clk 0:01:42]} 25. Kf1 {[%clk 0:01:16]}  g6 {[%clk 0:01:41]} 26. Nd4 {[%clk 0:01:15]}  Ree8 {[%clk 0:01:40]} 27. Nb3 {[%clk 0:01:14]}  Ra3 {[%clk 0:01:29]} 28. Na5 {[%clk 0:01:13]}  Rb8 {[%clk 0:01:24]} 29. Rc3 {[%clk 0:01:06]}  Ra4 {[%clk 0:01:18]} 30. Rb1 {[%clk 0:01:02]}  Nc8 {[%clk 0:01:17]} 31. f4 {[%clk 0:00:59]}  Nd6 {[%clk 0:01:16]} 32. e4 {[%clk 0:00:55]}  dxe4 {[%clk 0:01:06]} 33. dxe4 {[%clk 0:00:55]}  Nb5 {[%clk 0:01:05]} 34. Rd3 {[%clk 0:00:54]}  Nf6 {[%clk 0:00:49]} 35. e5 {[%clk 0:00:53]}  Nd5 {[%clk 0:00:48]} 36. Bxd5 {[%clk 0:00:39]}  cxd5 {[%clk 0:00:48]} 37. Rb2 {[%clk 0:00:31]}  d4 {[%clk 0:00:46]} 38. Kf2 {[%clk 0:00:30]}  Rc8 {[%clk 0:00:45]} 39. Nxb7 {[%clk 0:00:24]}  Rc1 {[%clk 0:00:41]} 40. Nd6 {[%clk 0:00:23]}  Nc7 {[%clk 0:00:32]} 41. Rxd4 {[%clk 0:00:23]}  Ne6 {[%clk 0:00:31]} 42. Rd3 {[%clk 0:00:20]}  Raa1 {[%clk 0:00:30]} 43. b5 {[%clk 0:00:17]}  Nc5 {[%clk 0:00:28]} 44. Re3 {[%clk 0:00:10]}  Rf1+ {[%clk 0:00:27]} 45. Ke2 {[%clk 0:00:09]}  Rae1+ {[%clk 0:00:26]} 46. Kd2 {[%clk 0:00:09]}  Rd1+ {[%clk 0:00:18]} 47. Kc3 {[%clk 0:00:10]}  Rc1+ {[%clk 0:00:18]} 48. Kb4 {[%clk 0:00:08]}  Ne6 {[%clk 0:00:12]} 49. b6 {[%clk 0:00:08]}  Nd8 {[%clk 0:00:11]} 50. b7 {[%clk 0:00:08]}  Nxb7 {[%clk 0:00:10]} 51. Nxb7 {[%clk 0:00:08]}  h4 {[%clk 0:00:06]} 52. gxh4 {[%clk 0:00:07]}  Rxf4+ {[%clk 0:00:05]} 53. Kb5 {[%clk 0:00:07]}  Rxh4 {[%clk 0:00:05]} 54. Nd6 {[%clk 0:00:07]}  Rc7 {[%clk 0:00:03]} 55. Rf2 {[%clk 0:00:05]}  Re7 {[%clk 0:00:03]} 56. Kc6 {[%clk 0:00:04]}  Rc4+ {[%clk 0:00:00]} 57. Nxc4 {[%clk 0:00:03]} 1-0


[Site "https://www.chess.com"]